Cogmind - Beta 10.2 @@@ ROGUE MODE // 2020.11.18 @ 15:04:26 // Halloween2020/ForbiddenLore Player: whisper Result: Self-destructed Performance ------------- Evolutions (2) 1000 Regions Visited (6) 1200 Robots Destroyed (35) 175 Value Destroyed (1107) 1107 Prototype IDs (3) 60 Alien Tech Used (0) 0 Bonus (769) 769 TOTAL SCORE: 4311 Bonus ------- High Alert Combat Kills 55 Follower Combat Kills 14 Entered Garrisons 200 Used RIF Installer 500 Cogmind --------- Core Integrity 356/550 Matter 300/300 Energy 160/160 System Corruption 0% Temperature Cool (0) Movement Rolling (120) Ox2 Location -8/Garrison Parts ------- > --- POWER (1) -------- Light Nuclear Core > --- PROPULSION (4) --- Light Treads Aluminum Leg Compact Wheel > --- UTILITY (4) ------ Improved Heat Sink Large Storage Unit Large Storage Unit Relay Coupler [Sentry] (22) > --- WEAPON (2) ------- EM Shotgun Shotgun > --- INVENTORY (16) --- Ion Engine Improved Ion Engine Improved Heat Sink Improved Signal Interpreter Light Armor Plating Relay Coupler [NC] (22) Relay Coupler [Duelist] (29) Relay Coupler [Hunter] (19) Heavy EM Shotgun EM Pulse Cannon Shotgun Mini Grenade Launcher Peak State ------------ > --- POWER ------------ Light Angular Momentum Engine > --- PROPULSION ------- Light Treads Light Treads Wheel Compact Wheel > --- UTILITY ---------- Improved Heat Sink Improved Heat Sink Large Storage Unit Large Storage Unit > --- WEAPON ----------- EM Shotgun EM Shotgun > --- INVENTORY -------- Ion Engine Improved Ion Engine Light Treads Improved Signal Interpreter Light Armor Plating EM Shotgun EM Shotgun Heavy EM Shotgun EM Pulse Cannon Light Assault Rifle Shotgun Shotgun Shotgun Mini Grenade Launcher Mini Grenade Launcher Datajack [Rating: 24] Favorites ----------- Power Ion Engine Engine Ion Engine Power Core Light Nuclear Core Propulsion Compact Wheel Treads Light Treads Leg Aluminum Leg Wheel Compact Wheel Utility Large Storage Unit Device Improved Heat Sink Storage Large Storage Unit Hackware Relay Coupler [Sentry] Weapon Light Assault Rifle Energy Gun EM Shotgun Energy Cannon EM Pulse Cannon Ballistic Gun Light Assault Rifle Launcher Mini Grenade Launcher Special Melee Weapon Datajack Build | -11 -10 -10 -10 -9 -8 -8 ------- Run | Scr Mat Min Exi Min Mat Gar Slots Evolved 4 | . . . . . 4 . Power . | . . . . . . . Propulsion 2 | . . . . . 2 . Utility 2 | . . . . . 2 . Weapon . | . . . . . . . Parts Attached 45 | 6 8 . . 4 3 24 Power 5 | 1 1 . . 1 . 2 Engine 4 | 1 1 . . 1 . 1 Core 1 | . . . . . . 1 Reactor . | . . . . . . . Propulsion 15 | 2 3 . . 1 2 7 Treads 6 | . . . . . 2 4 Leg 4 | 2 1 . . . . 1 Wheel 5 | . 2 . . 1 . 2 Hover . | . . . . . . . Flight . | . . . . . . . Utility 7 | 1 2 . . . 1 3 Device 3 | . . . . . 1 2 Storage 3 | 1 2 . . . . . Processor . | . . . . . . . Hackware 1 | . . . . . . 1 Protection . | . . . . . . . Artifact . | . . . . . . . Weapon 18 | 2 2 . . 2 . 12 Energy Gun 7 | . . . . . . 7 Energy Cannon 1 | . . . . . . 1 Ballistic Gun 8 | 2 2 . . 2 . 2 Ballistic Cannon . | . . . . . . . Launcher 1 | . . . . . . 1 Special Weapon . | . . . . . . . Impact Weapon . | . . . . . . . Slashing Weapon . | . . . . . . . Piercing Weapon . | . . . . . . . Special Melee Weapon 1 | . . . . . . 1 Unidentified Prototypes . | . . . . . . . Parts Lost 11 | . . . . 1 . 10 Power . | . . . . . . . Propulsion 6 | . . . . . . 6 Utility . | . . . . . . . Weapon 5 | . . . . 1 . 4 Highest Loss Streak 6 | . . . . 1 . 6 Average Slot Usage (%) 94 | . 88 100 100 96 85 96 Engine 10 | . 14 14 14 14 9 3 Core 2 | . . . . . . 5 Treads 8 | . . . . . 18 21 Leg 4 | . 14 . . . . . Wheel 17 | . 13 28 28 28 18 11 Device 5 | . . . . . 4 16 Storage 21 | . 16 28 28 28 18 18 Energy Gun 5 | . . . . . . 15 Ballistic Gun 18 | . 28 28 28 24 18 1 Naked Turns . | . . . . . . . Heaviest Build 49 | 13 39 39 39 41 42 49 Greatest Support 40 | 20 32 32 32 32 32 40 Greatest Overweight (x) 4 | 4 1 1 1 1 1 3 Average Overweight (x) . | 1 . 1 1 1 1 1 Largest Inventory Capacity 16 | 6 16 16 16 16 16 16 Average Capacity 13 | 5 8 16 16 16 16 16 Most Carried 16 | 6 16 16 16 16 16 16 Average Carried 13 | 3 7 16 16 15 14 15 Final Capacity 16 | 6 16 16 16 16 16 16 Final Carried 16 | 6 16 16 16 16 16 12 Class Distribution -------------------- 67% | Mutant 32% | Scavenger-Mutant Dominant Class ---------------- Mutant | -10/Materials Mutant | -10/Mines Mutant | -10/Exiles Mutant | -9/Mines Mutant | -8/Materials Scavenger-Mutant | -8/Garrison Resources | -11 -10 -10 -10 -9 -8 -8 ----------- Run | Scr Mat Min Exi Min Mat Gar Matter Collected 1001 | 162 251 . . 236 62 290 Remotely . | . . . . . . . Salvage Created 1140 | . 251 . . 226 27 636 Parts 67 | . 23 . . 12 4 28 Haulers Intercepted . | . . . . . . . Recyclers Shooed 3 | . 1 . . 2 . . Parts Field Recycled . | . . . . . . . Retrieved Matter . | . . . . . . . Parts Self-Destructed . | . . . . . . . Prevented . | . . . . . . . Kills | -11 -10 -10 -10 -9 -8 -8 ------- Run | Scr Mat Min Exi Min Mat Gar Combat Hostiles Destroyed 31 | . 8 . . 5 2 16 Guns 22 | . 8 . . 5 2 7 AOE 7 | . . . . . . 7 Classes Destroyed 7 | . 5 . . . . 2 Recycler 2 | . 1 . . 1 . . Operator 1 | . 1 . . . . . Watcher 1 | . 1 . . . . . Swarmer 15 | . 6 . . 3 2 4 Grunt 11 | . 2 . . 2 . 7 Sentry 4 | . . . . . . 4 Hunter 1 | . . . . . . 1 Best Kill Streak 10 | . 3 . . 3 2 10 Combat Bots Only 10 | . 3 . . 3 2 10 Max Kills in Single Turn 3 | . 1 . . 1 1 3 Gunslinging . | . . . . . . . Exploded 3 | . . . . . . 3 Melee . | . . . . . . . Uniques/NPCs Destroyed . | . . . . . . . Combat | -11 -10 -10 -10 -9 -8 -8 -------- Run | Scr Mat Min Exi Min Mat Gar Damage Taken 2025 | . 379 . . 257 42 1347 Core 339 | . 89 . . 56 7 187 Absorbed by Shields . | . . . . . . . Core Remaining (%) 71 | 100 . . . 42 . . Volleys Fired 100 | . 33 . . 15 4 48 Largest 2 | . 2 . . 2 2 2 Hottest 108 | . 40 . . 46 46 108 Shots Fired 191 | . 66 . . 29 8 88 Gun 184 | . 66 . . 29 8 81 Cannon 5 | . . . . . . 5 Launcher 2 | . . . . . . 2 Special . | . . . . . . . Kinetic 122 | . 66 . . 29 8 19 Thermal . | . . . . . . . Explosive 2 | . . . . . . 2 Electromagnetic 67 | . . . . . . 67 Robot Hit Streak 21 | . 6 . . 7 2 21 Robot Miss Streak 6 | . 6 . . 3 3 3 Penetration Max . | . . . . . . . Secondary Targets 1 | . . . . 1 . . Max Gunslinging Chain 1 | . . . . 1 . . Shots Hit Robots 127 | . 35 . . 23 4 65 Core Hits 71 | . 15 . . 10 2 44 Critical Hits 1 | . 1 . . . . . Critical Kills . | . . . . . . . Critical Parts Destroyed 1 | . 1 . . . . . Melee Attacks . | . . . . . . . Impact . | . . . . . . . Slashing . | . . . . . . . Piercing . | . . . . . . . Sneak Attacks . | . . . . . . . Combat Hostiles . | . . . . . . . Follow-up Attacks . | . . . . . . . Damage Inflicted 2230 | . 449 . . 239 21 1521 Guns 1607 | . 448 . . 239 21 899 Cannons 77 | . . . . . . 77 Explosions 545 | . . . . . . 545 Melee . | . . . . . . . Ramming 1 | . 1 . . . . . Kinetic 957 | . 448 . . 239 21 249 Thermal 259 | . . . . . . 259 Explosive 286 | . . . . . . 286 Electromagnetic 727 | . . . . . . 727 Impact . | . . . . . . . Slashing . | . . . . . . . Piercing . | . . . . . . . Highest Corruption . | . . . . . . . Average Corruption . | . . . . . . . Corruption Purged . | . . . . . . . Overload Shots . | . . . . . . . Overflow Damage 34 | . . . . . . 34 Projectiles . | . . . . . . . Explosions 34 | . . . . . . 34 Melee . | . . . . . . . Knockbacks . | . . . . . . . Impact . | . . . . . . . Kinetic . | . . . . . . . Secondary . | . . . . . . . Self-Inflicted Damage 88 | . . . . . . 88 Shots 3 | . . . . . . 3 Rammed 1 | . 1 . . . . . Targets Rammed 1 | . 1 . . . . . Kicked . | . . . . . . . Crushed . | . . . . . . . Highest Temperature 29 | . . . . 4 . 29 Average Temperature 7 | . . . . 1 . 11 Received Heat Transfer 678 | . 144 . . 30 . 504 Siege Activations . | . . . . . . . Robots Corrupted 2 | . . . . . . 2 Combat Hostiles 2 | . . . . . . 2 Parts Fried 6 | . . . . . . 6 Impact Corruptions . | . . . . . . . Robots Melted . | . . . . . . . Combat Hostiles . | . . . . . . . Parts Melted . | . . . . . . . Heat Transferred 224 | . . . . . . 224 Parts Sabotaged . | . . . . . . . Parts Stolen . | . . . . . . . Parts Stripped . | . . . . . . . Power Chain Reactions 4 | . . . . . . 4 Missiles Intercepted . | . . . . . . . Alert | -11 -10 -10 -10 -9 -8 -8 ------- Run | Scr Mat Min Exi Min Mat Gar Peak Influence 546 | . 223 31 . 130 149 546 Initial 96 | . . 31 . . 50 96 Average 198 | . 88 31 . 89 81 390 Maximum Alert Level 2 | . 1 . . . . 2 Low Security (%) 70 | 100 99 100 . 100 100 26 Level 1 7 | . . . . . . 17 Level 2 22 | . . . . . . 55 Level 3 . | . . . . . . . Level 4 . | . . . . . . . Level 5 . | . . . . . . . High Security . | . . . . . . . Max Security . | . . . . . . . Squads Dispatched 2 | . 1 . . 1 . . Investigation . | . . . . . . . Extermination . | . . . . . . . Reinforcement 1 | . 1 . . . . . Assault 1 | . . . . 1 . . Garrison . | . . . . . . . Intercept . | . . . . . . . Construction Impeded . | . . . . . . . Haulers Reinforced . | . . . . . . . Stealth | -11 -10 -10 -10 -9 -8 -8 --------- Run | Scr Mat Min Exi Min Mat Gar Distress Signals 1 | . 1 . . . . . Communications Jammed . | . . . . . . . Distress Signals . | . . . . . . . Times Spotted 45 | . 17 . . 7 4 17 Peak Tracking Total 11 | . 4 . . 4 4 11 Tactical Retreats 3 | . 1 . . 1 . 1 Traps | -11 -10 -10 -10 -9 -8 -8 ------- Run | Scr Mat Min Exi Min Mat Gar Traps Triggered 8 | . 1 . . . . 7 Indirectly . | . . . . . . . Trap Hack Attempts . | . . . . . . . Triggered . | . . . . . . . Disarmed . | . . . . . . . Reprogrammed . | . . . . . . . Reused . | . . . . . . . Traps Extracted . | . . . . . . . Installed . | . . . . . . . Triggered . | . . . . . . . Machines | -11 -10 -10 -10 -9 -8 -8 ---------- Run | Scr Mat Min Exi Min Mat Gar Machines Disabled 1 | . . . . . . 1 Max in Single Turn 1 | . . . . . . 1 Garrison Relay 1 | . . . . . . 1 Machines Sabotaged . | . . . . . . . Garrisons Compromised . | . . . . . . . Overloaded Fab Kills . | . . . . . . . Fab Network Shutdowns . | . . . . . . . Hacking | -11 -10 -10 -10 -9 -8 -8 --------- Run | Scr Mat Min Exi Min Mat Gar Machines Accessed 7 | . 5 . 1 . 1 . Terminals 5 | . 5 . . . . . Fabricators . | . . . . . . . Repair Stations . | . . . . . . . Recycling Units . | . . . . . . . Scanalyzers . | . . . . . . . Garrison Access 1 | . . . . . 1 . Total Hacks 19 | . 16 . 1 . 2 . Successful 8 | . 6 . 1 . 1 . Failed 11 | . 10 . . . 1 . Catastrophic 2 | . 2 . . . . . Database Lockouts . | . . . . . . . Manual 7 | . 7 . . . . . Terminals 16 | . 16 . . . . . Fabricators . | . . . . . . . Repair Stations . | . . . . . . . Recycling Units . | . . . . . . . Scanalyzers . | . . . . . . . Garrison Access 2 | . . . . . 2 . Terminal Hacks 6 | . 5 . 1 . . . Record 1 | . . . 1 . . . Prototype ID Bank 2 | . 2 . . . . . Locate Traps 1 | . 1 . . . . . Hauler Manifests 2 | . 2 . . . . . Fabricator Hacks . | . . . . . . . Repair Station Hacks . | . . . . . . . Recycling Unit Hacks . | . . . . . . . Scanalyzer . | . . . . . . . Garrison Access Hacks 1 | . . . . . 1 . Unlock Access 1 | . . . . . 1 . Unauthorized Hacks 1 | . 1 . . . . . Terminals 1 | . 1 . . . . . Operators 1 | . 1 . . . . . Fabricators . | . . . . . . . Repair Stations . | . . . . . . . Recycling Units . | . . . . . . . Scanalyzers . | . . . . . . . Garrison Access . | . . . . . . . Data Cores Recovered . | . . . . . . . Used . | . . . . . . . Hacking Detections 5 | . 5 . . . . . Full Trace Events . | . . . . . . . Feedback Events . | . . . . . . . Feedback Blocked . | . . . . . . . Robot Schematics Acquired . | . . . . . . . Robots Built . | . . . . . . . Matter . | . . . . . . . Time . | . . . . . . . Total Robot Build Rating . | . . . . . . . Part Schematics Acquired . | . . . . . . . Parts Built . | . . . . . . . Matter . | . . . . . . . Time . | . . . . . . . Total Part Build Rating . | . . . . . . . Parts Repaired . | . . . . . . . Time . | . . . . . . . Parts Recycled . | . . . . . . . Recycled Matter . | . . . . . . . Retrieved Matter . | . . . . . . . Retrieved Components . | . . . . . . . Parts Scanalyzed . | . . . . . . . Part Schematics Acquired . | . . . . . . . Parts Damaged . | . . . . . . . Bothacking | -11 -10 -10 -10 -9 -8 -8 ------------ Run | Scr Mat Min Exi Min Mat Gar Used RIF Installer 1 | . . . . . . 1 Robots Hacked . | . . . . . . . Non-combat . | . . . . . . . Combat . | . . . . . . . Robot Hacks Applied . | . . . . . . . Relay Couplers Released 4 | . . . . . . 4 Machine Destruction 4 | . . . . . . 4 Attached 1 | . . . . . . 1 Robots Rewired . | . . . . . . . Allies Hacked . | . . . . . . . Hacks Repelled . | . . . . . . . Allies | -11 -10 -10 -10 -9 -8 -8 -------- Run | Scr Mat Min Exi Min Mat Gar Total Allies 1 | . . . . 1 . . Largest Group 1 | . . . . . 1 1 Highest-Rated Group 31 | . . . . . 31 31 Highest-Rated Ally 31 | . . . . . 31 31 Total Orders . | . . . . . . . Ally Attacks 8 | . . . . . 7 1 Total Damage 104 | . . . . . 104 . Kills 2 | . . . . . 2 . Allies Corrupted . | . . . . . . . Allies Melted . | . . . . . . . Intel | -11 -10 -10 -10 -9 -8 -8 ------- Run | Scr Mat Min Exi Min Mat Gar Robot Analysis Total . | . . . . . . . Derelict Logs Recovered 1 | . . 1 . . . . Drone Launches . | . . . . . . . Drone Recoveries . | . . . . . . . Exploration | -11 -10 -10 -10 -9 -8 -8 ------------- Run | Scr Mat Min Exi Min Mat Gar Turns Passed 2463 | 67 653 292 404 117 100 830 Spaces Moved 1667 | 38 448 264 368 55 73 421 Core 19 | 19 . . . . . . Treads 169 | . . . . . . 169 Legs 235 | 19 216 . . . . . Wheels 1244 | . 232 264 368 55 73 252 Hover . | . . . . . . . Flight . | . . . . . . . Fastest Speed 50 | 50 100 110 110 110 110 100 Average Speed 120 | 139 111 110 110 110 110 146 Slowest Speed 250 | 250 120 110 110 110 110 200 Overloaded Moves . | . . . . . . . Propulsion Burnouts . | . . . . . . . Robots Hopped . | . . . . . . . Cave-ins Triggered . | . . . . . . . Exploration Rate (%) 41 | 3 60 59 70 12 8 75 Regions Visited 6 Branch Regions 3 Pre-discovered Areas 1 | . . . 1 . . . Known Exits Taken 1 | . . . . . 1 . Unknown Exits Taken 5 | 1 1 1 1 1 . . Scrap Searched . | . . . . . . . Spaces Dug . | . . . . . . . Terrain Destroyed 22 | . . . . . . 22 Melee . | . . . . . . . Projectile . | . . . . . . . AOE 22 | . . . . . . 22 Terrain Rammed . | . . . . . . . Walls Destroyed . | . . . . . . . Machines Disabled . | . . . . . . . Actions | -11 -10 -10 -10 -9 -8 -8 --------- Run | Scr Mat Min Exi Min Mat Gar Total 1931 | 49 539 265 367 83 84 544 Wait 41 | . 28 2 . 6 1 4 Move 1662 | 37 447 263 367 54 73 421 Hop . | . . . . . . . Pick Up 30 | 6 13 . . 2 3 6 Fast Attach 14 | 6 2 . . . . 6 Attach 10 | . . . . 1 3 6 Detach 1 | . . . . . . 1 Swap 21 | . 6 . . 3 . 12 Drop 21 | . 9 . . 2 . 10 Fire 100 | . 33 . . 15 4 48 Melee . | . . . . . . . Ram 1 | . 1 . . . . . Kick . | . . . . . . . Crush . | . . . . . . . Escape Stasis 30 | . . . . . . 30 Rewire . | . . . . . . . Trap . | . . . . . . . Miscellaneous . | . . . . . . . Route ------- -11/Scrapyard -10/Materials (discovered 3 exits: [*Mat] / [*Min x2]) -10/Mines -10/Exiles -9/Mines -8/Materials -8/Garrison (discovered 3 exits: [*Mat x3]) History --------- Turn | Location | Event 50 | -11/Scrapyard | Discovered new exit (range 13) 68 | -11/Scrapyard | Entered Materials 229 | -10/Materials | Discovered new exit (range 5) 318 | -10/Materials | Build established: Mutant 528 | -10/Materials | Discovered new exit (range 16) 577 | -10/Materials | Discovered new exit (range 12) 721 | -10/Materials | Entered Mines 804 | -10/Mines | Met a Derelict bent on vengeance 1008 | -10/Mines | Deemed a non-threat by the Exiles lab entrance 1008 | -10/Mines | Discovered new exit (range 5) 1013 | -10/Mines | Entered Exiles 1039 | -10/Exiles | Met 8R-AWN 1059 | -10/Exiles | Met EX-HEX 1115 | -10/Exiles | Met EX-DEC 1141 | -10/Exiles | Visited The Gauntlet 1274 | -10/Exiles | Learned location of Zion (-7) 1403 | -10/Exiles | Discovered new exit (range 15) 1417 | -10/Exiles | Entered Mines 1457 | -9/Mines | Discovered new exit (range 13) 1469 | -9/Mines | Core integrity fell below 50% 1525 | -9/Mines | Met a Derelict testing a Signal Generator 1534 | -9/Mines | Entered Materials 1534 | -8/Materials | Accompanied by 1 ally 1534 | -8/Materials | Evolved 4 slots: Propulsion x2, Utility x2 1633 | -8/Materials | Identified exit to Garrison 1634 | -8/Materials | Entered Garrison 1634 | -8/Garrison | Accompanied by 1 ally 1654 | -8/Garrison | Triggered checkpoint 1745 | -8/Garrison | Garrison Relay disabled 1846 | -8/Garrison | Triggered checkpoint 1926 | -8/Garrison | Destroyed 10 combat bots 1973 | -8/Garrison | Build established: Scavenger-Mutant 2020 | -8/Garrison | Discovered new exit (range 15) 2124 | -8/Garrison | Triggered checkpoint 2186 | -8/Garrison | Discovered new exit (range 8) 2295 | -8/Garrison | Discovered new exit (range 12) 2314 | -8/Garrison | Installed Relay Interface Framework 2342 | -8/Garrison | Triggered checkpoint 2418 | -8/Garrison | Lost 6 parts (3n3w) 2464 | -8/Garrison | Self-destructed Last Messages --------------- 02352_ EM Shotgun destroyed. 02352_ Destroyed EM Shotgun. 02353_ Y-45 Defender system terminally corrupted. 02353_ Beam Rifle fried. 02353_ Heat Sink fried. 02365_ Lgt. Treads destroyed. 02366_ EM Shotgun destroyed. 02367_ G-47 Trooper misfires. 02370_ G-47 Trooper system terminally corrupted. 02370_ Particle Gun fried. 02370_ Aluminum Leg fried. 02374_ Lgt. Treads destroyed. 02378_ Acquired 25 matter. 02380_ Acquired Lgt. Treads. 02387_ Lgt. Treads destroyed. 02391_ Particle Gun fried. 02391_ G-47 Trooper destroyed. 02394_ Acquired 19 matter. 02402_ Acquired Aluminum Leg. 02431_ Acquired 14 matter. Map ----- +----------------------------------------------------+ | ?????????????????????????????????????????????????? | | ?????????????????????????????????????????????????? | | ?????????????????????????????????????????????????? | | ?????????????????????????????????????????????????? | | ?????????????????????????????????????????????????? | | ?????????????????????????????????????????????????? | | ?????????????????????????????????????????????????? | | ?????????????????????????????????????????????????? | | ????????????????????????##???????????????????????? | | ?????????????????????###"#???????????????????????? | | ?????????????????????# "#???????????????????????? | | ?????????????????????# "#???????????????????????? | | ?????????????????????# "#???????????????????????? | | ?????????????????????# #"#???????????????????????? | | ?????????????????????# #?????????????????????????? | | ?????????????????????# #???????????????????#####?? | | ?????????????????????# #???????????????????#! [#?? | | ?????????????????????# #?????????????####### *### | | ???#####???????????### #?????????????# [=[] [!%[ | | ???#"""#???????????# ########??????# ######### | | ???#" "#???????????# #???#""[""#??????? | | ???#" "#???????????# ########?????#######??????? | | ???#" "#???????????### #????# #??????????????????? | | ???## ##????????????#;%###??# #??????????????????# | | ???# #???????#+##### ;;#### #??????????????????# | | ???# < ######### % %!@ #??????????????????# | | ???# ####;; ;### #??????????????????# | | ???# #??######?# #??????????????????# | | ???############# #?????????# #??????????????????# | | ???????????????# #?????????# #????????????##????# | | ???????????????# #?????????# #####????## ###### | | ???????????????# #?????????# #????# =%= | | ???????????????# #?????????# ### #????# ###### | | ???????????????# #?????????# #?######?# #???????# | | ???????????????# #?????????# #?# ### #???????# | | ???????????????# #????????###### # ####????# | | ???????????????# ########## ###### | | ???????????????# !% | | ???????????????# % [!! | | ???????????????############# ## # =%# ###### | | ???????????????????????????# ## # *=###????? | | ???????????????????????????" #????? | | ???????????????????????????" #????? | | ???????????????????????????" #????? | | ???????????????????????????" #????? | | ???????????????????????????# ## ## ###????? | | ?????????????????########### ## ## #??????? | | ?????????????????# #??????? | | ?????????????????# #??????? | | ?????????????????# ######## #??????? | +----------------------------------------------------+ Best States ------------- Heat Dissipation 59 Energy Generation 18 Energy Capacity 250 Matter Stores 300 Matter Capacity 300 Sight Range 16 Terrain Scan Density 10 Evasion (%) 40 Recoil Reduction 3 Relay Coupler Types 22 Relay Coupler Value 1 Item Schematics ----------------- None Robot Schematics ------------------ None Fabricated ------------ Nothing Alien Tech Used ----------------- None Achievements -------------- None Challenges ------------ None Game ------ Seed AlloyRiotComputer Manual? 0 Play Time 00:29:29 Cumulative 44.4 hours Start 2020.11.18 @ 14:21:34 End 2020.11.18 @ 15:04:26 Sessions 3 Manual Loads 0 Difficulty Rogue Special Mode Halloween2020/ForbiddenLore Game No. 14 Rogue 14 Adventurer 0 Explorer 0 Win Type - Total 1 Types 1/0/0/0/0/0/0/0/0 Lore% 43 Gallery% 40 Achievement% 37 Wizard Run 0 Options --------- ASCII 1 Keyboard 1 Movement Vi Keybinds 0 Fullscreen 2 Font 24/Proggy Map View 76x50 Tactical HUD 1 Map Filters NONE Filters NONE Steam 1 RUN: 9ab595ba-97b6-4bcd-8f5a-35452378fcb6